bitfinex/quotes_SOLUSD_20250811
["timestamp","ask_amount","ask_price","bid_price","bid_amount"]
[1754873314093,0.68624759,182.15,182.11,3.96153593]
[1754873314255,4.05552875,182.14,182.12,0.7]
[1754873314464,49.43776455,182.15,182.12,0.7]
[1754873314889,3.96153593,182.13,182.09,0.7]
[1754873315069,3.96153593,182.11,182.09,0.7]
[1754873315272,4.64789657,182.12,182.09,0.7]
[1754873315760,4.64789657,182.12,182.07,3.96153593]
[1754873315969,0.68636064,182.12,182.07,10.15373617]
[1754873316167,0.68636064,182.12,182.08,4.66153593]
[1754873316504,0.68636064,182.12,182.09,0.7]
[1754873316785,6.17725603,182.12,182.1,0.7]
[1754873316968,10.13879196,182.12,182.1,0.7]
[1754873317164,6.17725603,182.12,182.1,0.7]
[1754873317362,0.68636064,182.12,182.1,0.7]
[1754873318877,6.17724773,182.12,182.1,0.7]
[1754873319694,6.17724773,182.12,182.08,0.7]
[1754873320089,6.17724773,182.12,182.07,3.96153593]
[1754873320387,6.17724773,182.12,182.09,0.7]
[1754873320769,10.13878366,182.12,182.09,0.7]
[1754873321197,3.96153593,182.1,182.06,0.7]
[1754873321379,0.68647372,182.09,182.06,0.7]
[1754873321583,4.64800965,182.09,182.04,4.66153593]
[1754873321871,4.64800965,182.09,182.05,0.7]
[1754873322089,4.64800965,182.09,182.04,3.96153593]
[1754873322271,4.64800965,182.09,182.06,0.7]
[1754873322793,0.68647372,182.09,182.05,0.7]
[1754873323495,6.17826895,182.09,182.06,0.7]
[1754873323695,0.68647372,182.09,182.06,0.7]
[1754873323864,0.68647372,182.09,182.07,0.7]
[1754873324067,0.68647372,182.09,182.05,0.7]
[1754873324287,0.68647372,182.09,182.06,0.7]
[1754873324687,6.17838026,182.09,182.04,4.66153593]
[1754873324892,3.96153593,182.07,182.02,4.66153593]
[1754873325099,3.96153593,182.06,182.02,0.7]
[1754873325489,1.38654912,182.07,182.02,0.7]
[1754873325697,3.96153593,182.06,182.02,0.7]
[1754873325896,3.96153593,182.06,182.03,0.7]
[1754873326982,9.45429645,182.06,182.03,0.7]
[1754873327420,5.34816048,182.05,182.01,0.06]
[1754873327711,3.96153593,182.03,182.01,0.06]
[1754873328078,4.64823592,182.03,182.01,0.06]
[1754873328580,10.15532564,182.03,182.01,0.06]
[1754873328890,5.49337496,182.04,182.01,0.76]
[1754873329210,5.49337496,182.04,182.02,0.7]
[1754873329211,0.68669999,182.03,182.02,0.7]
[1754873329515,0.68669999,182.03,182.01,0.06]
[1754873329719,0.68662455,182.05,182.02,0.7]
[1754873329888,0.68662455,182.05,182.03,0.7]
[1754873330588,0.68662455,182.05,182.01,0.76]
[1754873330783,0.68662455,182.05,182.02,0.7]
[1754873331995,6.17967431,182.05,182.02,0.7]
[1754873332205,10.14121024,182.05,182.02,0.7]
[1754873333812,4.64816048,182.05,182.02,0.7]
[1754873334387,0.68662455,182.05,182.02,0.7]
[1754873335211,6.17962371,182.05,182.02,0.7]
[1754873335419,3.96153593,182.04,182.01,0.06]
[1754873335715,5.0781982,182.04,182.01,0.06]
[1754873336093,4.6481982,182.04,182.01,0.76]
[1754873336415,4.39153593,182.03,182.01,0.06]
[1754873336615,3.96153593,182.03,182.01,0.06]
[1754873336797,10.57163695,182.04,182.01,0.06]
[1754873339298,0.68651142,182.08,182.03,3.96153593]
[1754873339614,8.4560384,182.07,182.01,4.71153593]
[1754873339814,3.96153593,182.05,182.01,0.75]
[1754873340025,5.07812276,182.06,182.02,0.69]
[1754873340243,0.68654912,182.07,182.03,0.69]
[1754873340529,0.68654912,182.07,182.04,0.69]
[1754873340729,6.17834854,182.09,182.04,4.65153593]
[1754873341032,0.68647372,182.09,182.05,4.65153593]
[1754873341209,45.41797412,182.1,182.05,3.96153593]
[1754873341410,4.06519564,182.09,182.06,0.69]
[1754873341937,0.03,182.08,182.06,0.69]
[1754873342732,3.96153593,182.07,182.04,0.69]
[1754873342895,0.68658683,182.06,182.02,0.69]
[1754873343102,0.68658683,182.06,182.03,0.69]
[1754873343301,0.68658683,182.06,182.02,3.96153593]
[1754873343635,3.99153593,182.08,182.05,3.96153593]
[1754873343636,0.03,182.08,182.05,3.96153593]
[1754873343811,0.03,182.08,182.07,3.96153593]
[1754873344301,0.03,182.08,182.07,4.65153593]
[1754873344628,0.03,182.08,182.07,10.14392896]
[1754873345200,0.03,182.22,182.09,26.0]
[1754873345431,0.03,182.22,182.08,16.48]
[1754873345432,0.03,182.3,182.25,26.0]
[1754873345620,0.03,182.34,182.3,25.10621557]
[1754873345929,0.03,182.37,182.31,58.75775463]
[1754873346235,0.03,182.37,182.34,6.25602781]
[1754873346412,0.03,182.37,182.34,10.33096528]
[1754873346610,0.03,182.37,182.34,30.92144102]
[1754873346815,0.03,182.37,182.35,6.25602781]
[1754873347108,0.72,182.43,182.36,10.33096528]
[1754873347311,0.72,182.43,182.41,6.25602781]
[1754873347520,0.72,182.43,182.42,4.07493747]
[1754873347720,0.41314436,182.46,182.42,4.07493747]
[1754873347938,15.51935993,182.46,182.43,4.07493747]
[1754873348128,15.51935993,182.46,182.31,2.196053]
[1754873348332,15.51935993,182.46,182.3,0.69]
[1754873348333,15.10621557,182.44,182.3,0.69]
[1754873348543,15.10621557,182.42,182.28,26.0]
[1754873348711,40.09314436,182.43,182.25,15.10621557]
[1754873348712,15.10621557,182.4,182.29,26.0]
[1754873348916,1.13314436,182.39,182.29,26.69]
[1754873349120,6.25602781,182.36,182.3,6.25602781]
[1754873349420,6.66917217,182.35,182.29,32.94602781]
[1754873349643,6.25602781,182.33,182.27,6.25602781]
[1754873350340,0.41314436,182.32,182.27,6.25602781]
[1754873350639,5.48486178,182.32,182.27,6.94602781]
[1754873350814,1.13314436,182.34,182.28,6.94602781]
[1754873350815,6.97602781,182.34,182.28,6.94602781]
[1754873351011,12.15374426,182.33,182.28,0.69]
[1754873351215,6.25602781,182.3,182.25,0.69]
[1754873351412,0.41314436,182.31,182.24,112.82612384]
[1754873351616,19.19597449,182.33,182.27,6.25602781]
[1754873351617,6.25602781,182.32,182.27,6.25602781]
[1754873351836,6.25602781,182.32,182.27,6.94602781]
[1754873352214,6.25602781,182.29,182.24,113.51612384]
[1754873352521,6.25602781,182.27,182.24,112.82612384]
[1754873352839,5.48666739,182.26,182.24,112.82612384]
[1754873354112,5.48666739,182.26,182.24,113.51612384]
[1754873354418,11.7426952,182.26,182.24,112.82612384]
[1754873354606,11.74299625,182.25,182.24,112.82612384]
[1754873355425,12.46299625,182.25,182.24,112.82612384]
[1754873356742,12.46299625,182.25,182.24,84.4485525]
[1754873356921,12.46299625,182.25,182.24,55.87614521]
[1754873357127,12.46299625,182.25,182.24,28.00935946]
[1754873357335,12.46299625,182.25,182.24,1e-08]
[1754873357529,26.18041737,182.25,182.18,0.69]
[1754873357726,0.41314436,182.24,182.18,0.69]
[1754873357930,6.25602781,182.22,182.18,0.69]
[1754873358257,6.25602781,182.22,182.19,0.69]
[1754873358546,6.25602781,182.23,182.19,0.69]
[1754873358727,6.25602781,182.22,182.19,0.69]
[1754873358913,5.48817298,182.21,182.19,0.69]
[1754873359835,5.48817298,182.21,182.2,0.69]
[1754873360038,5.48790726,182.22,182.2,0.69]
[1754873360542,11.74393507,182.22,182.17,6.94602781]
[1754873360843,11.74393507,182.22,182.18,0.69]
[1754873361041,5.48790726,182.22,182.18,0.69]
[1754873361526,5.48790726,182.22,182.19,0.69]
[1754873361845,5.48790726,182.22,182.2,0.69]
[1754873362212,5.48790726,182.22,182.18,6.94602781]
[1754873362432,5.48790726,182.22,182.18,6.25602781]
[1754873362647,5.48790726,182.22,182.19,0.69]
[1754873362844,5.48757065,182.23,182.19,0.69]
[1754873363343,5.48757065,182.23,182.16,40.33]
[1754873363344,25.87566945,182.23,182.16,40.33]
[1754873363521,6.25602781,182.21,182.16,40.33]
[1754873363727,6.25602781,182.2,182.16,40.33]
[1754873364110,6.25602781,182.21,182.16,40.33]
[1754873364335,6.97602781,182.21,182.16,40.33]
[1754873364731,5.4884742,182.2,182.16,40.33]
[1754873365128,5.4884742,182.2,182.17,0.69]
[1754873366815,11.74420079,182.21,182.17,0.69]
[1754873367225,5.48817298,182.21,182.17,0.69]
[1754873367545,12.46420079,182.21,182.17,0.69]
[1754873367743,6.25602781,182.18,182.15,0.06]
[1754873368854,5.48937805,182.17,182.15,0.06]
[1754873369030,12.46540586,182.17,182.15,0.06]
[1754873369227,7.38917217,182.16,182.15,0.06]
[1754873369423,7.38917217,182.16,182.13,0.06]
[1754873369741,6.25602781,182.14,182.13,0.06]
[1754873369936,6.66917217,182.14,182.13,0.06]
[1754873370118,6.94602781,182.14,182.13,0.06]
[1754873370822,12.43631001,182.14,182.13,0.06]
[1754873371450,6.1802822,182.14,182.13,0.06]
[1754873371646,12.43631001,182.14,182.13,0.06]
[1754873372230,12.43631001,182.14,182.13,1e-08]
[1754873375421,11.74631001,182.14,182.13,1e-08]
[1754873376759,12.43631001,182.14,182.13,1e-08]
[1754873379528,28.93296901,182.14,182.13,1e-08]
[1754873382152,44.03918458,182.14,182.13,1e-08]
[1754873382335,28.93296901,182.14,182.13,1e-08]
[1754873382659,83.39918458,182.14,182.13,1e-08]
[1754873383340,130.83232889,182.14,182.07,1e-08]
[1754873383550,6.25602781,182.08,182.07,1e-08]
[1754873383854,45.61602781,182.08,182.07,1e-08]
[1754873384065,46.30602781,182.08,182.07,1e-08]
[1754873384443,45.61602781,182.08,182.07,1e-08]
[1754873385075,1.10314436,182.13,182.07,0.68000001]
[1754873385267,6.25602781,182.1,182.09,0.06]
[1754873385448,11.747516,182.1,182.09,0.06]
[1754873389057,5.49148819,182.1,182.09,0.06]
[1754873389260,5.49148819,182.1,182.09,0.74]
[1754873390554,11.747516,182.1,182.09,0.06]
[1754873390755,12.85066036,182.1,182.09,1e-08]
[1754873391273,12.16066036,182.1,182.09,1e-08]
[1754873391483,52.17066036,182.1,182.09,1e-08]
[1754873394061,67.27687593,182.1,182.09,1e-08]
[1754873394682,41.10621557,182.08,182.07,1e-08]
[1754873394880,41.10621557,182.08,182.01,0.06]
[1754873394881,26.0,182.04,182.01,0.06]
[1754873395082,39.71314436,182.03,182.01,0.06]
[1754873395270,6.25602781,182.02,182.01,0.06]
[1754873396159,11.74992957,182.02,182.01,0.06]
[1754873398087,12.43992957,182.02,182.01,1e-08]
[1754873398665,12.43992957,182.02,181.99,0.06]
[1754873398666,6.25602781,182.0,181.99,1e-08]
[1754873398966,45.96917217,182.0,181.99,1e-08]
[1754873399173,46.65917217,182.0,181.99,1e-08]
[1754873400483,52.15367766,182.0,181.99,1e-08]
[1754873400988,52.15367766,182.0,181.91,75.02215335]
[1754873400989,99.61849667,182.0,181.93,0.69]
[1754873401182,99.61849667,182.0,181.91,75.02215335]
[1754873401183,6.25602781,181.94,181.91,0.69]
[1754873401380,6.25602781,181.94,181.92,0.69]
[1754873401881,39.28,181.95,181.88,6.25602781]
[1754873402190,45.53602781,181.97,181.93,0.69]
[1754873402386,45.53602781,181.97,181.94,0.69]
[1754873402387,6.25602781,181.95,181.94,0.69]
[1754873402689,6.25602781,181.95,181.89,26.0]
[1754873402690,11.75204319,181.95,181.92,0.69]
[1754873402984,11.75204319,181.95,181.89,6.25602781]
[1754873402985,5.49601538,181.95,181.93,0.69]
[1754873403172,5.49601538,181.95,181.94,0.69]
[1754873404772,5.49578589,181.96,181.94,0.69]
[1754873405290,5.49548786,181.97,181.94,0.75]
[1754873405495,5.49548786,181.97,181.94,7.00602781]
[1754873405677,26.44314436,182.0,181.95,0.69]
[1754873405678,5.52457158,182.0,181.95,0.69]
[1754873405987,0.03,182.0,181.96,6.25602781]
[1754873406191,0.03,182.0,181.98,3.98733991]
[1754873406490,0.03,182.0,181.97,0.69]
[1754873406491,0.03,182.0,181.99,0.69]
[1754873406700,0.03,182.0,181.99,4.67733991]
[1754873407082,0.03,182.0,181.99,3.98733991]
[1754873407293,0.03,182.0,181.99,0.69]
[1754873408069,0.03,182.0,181.95,3.98733991]
[1754873408289,6.28477835,181.99,181.94,6.34477835]
[1754873408588,6.28477835,181.98,181.95,0.69]
[1754873409280,5.49541133,181.97,181.95,0.69]
[1754873409483,5.49518362,181.98,181.96,0.69]
[1754873411199,5.49518362,181.98,181.94,6.34477835]
[1754873411200,0.03,182.0,181.97,6.97477835]
[1754873411371,0.03,182.0,181.98,0.69]
[1754873412465,0.03,182.0,181.99,0.69]
[1754873415000,0.03,182.0,181.99,6.97477835]
[1754873416072,0.03,182.0,181.99,0.69]
[1754873416278,0.03,182.0,181.97,6.97477835]
[1754873416501,0.03,182.0,181.98,0.69]
[1754873417005,0.03,182.0,181.99,0.69]
[1754873418878,0.03,182.0,181.97,6.28477835]
[1754873419088,0.03,182.0,181.98,0.69]
[1754873419389,0.03,182.0,181.98,6.97477835]
[1754873420110,0.03,182.0,181.99,0.69]
[1754873420721,0.03,182.0,181.97,6.97477835]
[1754873421678,6.28477835,181.99,181.94,0.75]
[1754873421884,6.28477835,181.99,181.94,7.03477835]
[1754873421885,6.96477835,181.99,181.94,7.03477835]
[1754873422192,5.49510935,181.98,181.94,7.03477835]
[1754873423001,6.28477835,181.97,181.94,0.06]
[1754873423183,6.96477835,181.97,181.94,0.06]
[1754873423592,5.90825371,181.98,181.94,0.06]
[1754873423893,12.19303206,181.98,181.95,0.69]
[1754873424297,5.90825371,181.98,181.94,0.06]
[1754873424498,5.49482568,181.99,181.95,0.69]
[1754873424687,0.03,182.0,181.95,0.69]
[1754873424888,0.03,182.0,181.97,6.28477835]
[1754873425104,0.03,182.0,181.98,6.97477835]
[1754873425305,0.03,182.0,181.94,0.06]
[1754873425487,5.52455572,182.0,181.96,6.28477835]
[1754873425685,5.52455572,182.0,181.95,0.69]
[1754873425686,6.96477835,181.99,181.95,0.69]
[1754873425897,6.96477835,181.99,181.94,6.34477835]
[1754873426113,6.96477835,181.99,181.94,7.03477835]
[1754873426327,5.49510935,181.98,181.94,7.03477835]
[1754873426989,12.4598877,181.98,181.94,0.75]
[1754873427291,6.17510935,181.98,181.94,0.75]
[1754873427502,12.4598877,181.98,181.94,0.75]
[1754873427705,12.4598877,181.98,181.94,0.06]
[1754873427906,6.28477835,181.97,181.94,0.06]
[1754873428093,12.4598877,181.98,181.94,0.75]
[1754873428301,0.41314436,181.97,181.94,0.75]
[1754873429215,5.49571334,181.96,181.94,0.06]
[1754873430114,5.49541133,181.97,181.94,0.06]
[1754873430315,5.49541133,181.97,181.95,0.71]
[1754873430517,1.16314436,182.0,181.96,4.69973706]
[1754873430707,5.52461386,182.0,181.97,4.69973706]
[1754873430906,5.52461386,182.0,181.97,0.71]
[1754873431309,0.03,182.0,181.97,4.69973706]
[1754873431701,0.03,182.0,181.98,0.71]
[1754873432629,0.03,182.0,181.97,3.98973706]
[1754873432834,0.03,182.0,181.97,4.69973706]
[1754873433537,0.03,182.0,181.95,0.71]
[1754873433705,0.03,182.0,181.95,4.69973706]
[1754873433706,0.72,181.99,181.95,4.69973706]
[1754873433900,3.98973706,181.99,181.94,0.06]
[1754873434105,3.98973706,181.97,181.94,0.06]
[1754873434607,4.70973706,181.97,181.94,0.06]
[1754873434813,0.72,181.97,181.94,0.06]
[1754873435013,5.12288142,181.97,181.94,0.06]
[1754873435420,4.70973706,181.97,181.94,0.06]
[1754873435624,6.21558067,181.97,181.94,0.06]
[1754873436508,6.62872503,181.97,181.94,0.06]
[1754873436824,4.70973706,181.96,181.94,0.06]
[1754873437028,4.40288142,181.95,181.94,0.06]
[1754873437232,5.12288142,181.95,181.94,0.06]
[1754873437402,4.40288142,181.95,181.94,0.06]
[1754873437597,10.6188968,181.95,181.94,0.06]
[1754873444512,5.49578895,181.96,181.94,0.06]
[1754873444741,3.98973706,181.95,181.94,0.06]
[1754873446058,5.49542997,181.97,181.94,0.77]
[1754873446367,0.41314436,181.98,181.94,4.75973706]
[1754873446566,0.41314436,181.98,181.95,0.71]
[1754873446866,4.40288142,181.98,181.95,0.71]
[1754873447757,9.89818557,181.98,181.95,0.71]
[1754873448936,0.03,181.97,181.95,0.71]
[1754873449137,0.03,181.97,181.94,0.06]
[1754873449536,0.03,181.97,181.95,0.71]
[1754873449737,0.03,181.97,181.94,4.04973706]
[1754873450046,0.03,181.97,181.96,4.69973706]
[1754873450268,0.03,181.97,181.96,30.69973706]
[1754873450442,0.03,182.0,181.97,26.0]
[1754873450638,0.03,182.0,181.99,3.98973706]
[1754873450864,0.03,182.0,181.98,0.71]
[1754873452989,0.03,182.0,181.95,4.69973706]
[1754873452990,0.72,181.99,181.95,4.69973706]
[1754873453165,4.70973706,181.99,181.94,4.04973706]
[1754873453350,3.98973706,181.99,181.95,0.71]
[1754873453552,3.98973706,181.99,181.96,0.71]
[1754873453880,0.03,182.0,181.97,3.98973706]
[1754873454046,0.03,182.0,181.98,3.98973706]
[1754873454244,0.03,182.0,181.98,0.71]
[1754873454451,0.03,182.0,181.99,0.71]
[1754873456765,0.03,182.0,181.99,10.19454446]
[1754873456966,0.03,182.0,181.99,4.69973706]
[1754873459605,0.03,182.0,181.99,10.19454446]
[1754873460074,0.03,182.01,181.99,51.30076003]
[1754873460281,0.03,182.01,182.0,5.1891876]
[1754873460681,0.03,182.01,182.0,20.29540317]
[1754873461302,0.03,182.01,182.0,25.78990866]
[1754873462472,0.03,182.01,182.0,21.8001716]
[1754873462693,0.03,182.01,182.0,25.78990866]
[1754873463677,0.03,182.01,182.0,115.38990866]
[1754873463881,0.03,182.01,182.0,114.84045812]
[1754873464108,0.03,182.01,182.0,115.38990866]
[1754873464888,0.03,182.01,182.0,154.10045812]
[1754873473605,0.03,182.01,182.0,154.16045812]
[1754873475115,0.03,182.01,182.0,150.17072106]
[1754873475295,0.03,182.01,182.0,154.16045812]
[1754873476904,0.03,182.01,182.0,108.75595263]
[1754873477217,0.75,182.01,182.0,89.66]
[1754873477407,0.03,182.01,182.0,138.36424255]
[1754873479220,0.03,182.01,182.0,139.01424255]
[1754873480291,0.03,182.01,182.0,138.36424255]
[1754873481227,0.03,182.01,182.0,139.01424255]
[1754873481599,0.03,182.01,182.0,154.12045812]
[1754873481996,0.03,182.02,182.01,15.10621557]
[1754873482197,0.03,182.03,182.01,20.29537299]
[1754873482508,0.03,182.04,182.03,15.10621557]
[1754873482708,0.03,182.05,182.03,23.63504968]
[1754873483005,0.03,182.07,182.05,41.10621557]
[1754873483219,0.03,182.07,182.05,55.12798575]
[1754873483430,0.03,182.07,182.05,55.77798575]
[1754873483604,0.03,182.07,182.05,29.77798575]
[1754873484418,0.03,182.07,182.05,25.13824869]
[1754873484626,0.03,182.07,182.05,24.58894905]
[1754873484805,0.03,182.07,182.05,25.23894905]
[1754873485321,0.03,182.07,182.05,29.22868611]
[1754873485523,0.03,182.07,182.06,85.5152221]
[1754873485703,0.03,182.07,182.06,84.31595263]
[1754873485910,0.03,182.07,182.06,84.96595263]
[1754873486222,0.03,182.07,182.06,89.80864734]
[1754873487701,0.03,182.07,182.06,90.45864734]
[1754873488032,0.75,182.07,182.06,43.20973706]
[1754873488918,0.75,182.07,182.06,48.70243177]
[1754873489102,0.75,182.07,182.06,43.20973706]
[1754873489523,0.75,182.07,182.02,5.49360427]
[1754873489730,10.23219056,182.07,182.03,39.2]
[1754873489926,0.68,182.06,182.03,39.2]
[1754873491043,0.68,182.06,182.0,0.06]
[1754873491044,3.98973706,182.04,182.0,0.06]
[1754873491246,4.66973706,182.03,182.01,39.2]
[1754873491532,0.68,182.05,182.02,3.98973706]
[1754873491705,0.68,182.04,182.03,39.2]
[1754873493138,0.68,182.06,182.03,43.18973706]
[1754873493341,0.68,182.06,182.04,3.98973706]
[1754873493638,0.68,182.06,182.05,39.2]
[1754873493948,0.03,182.07,182.05,39.2]
[1754873494308,0.68,182.06,182.05,39.2]
[1754873495448,0.03,182.07,182.05,39.2]
[1754873495739,0.03,182.07,182.05,48.68265664]
[1754873496054,0.03,182.07,182.06,3.98973706]
[1754873496715,0.03,182.07,182.06,10.18243177]
[1754873496919,0.03,182.07,182.06,25.28864734]
[1754873499835,0.03,182.07,182.06,89.78864734]
[1754873500534,0.03,182.07,182.06,90.48864734]
[1754873500728,0.03,182.07,182.06,89.78864734]
[1754873500947,0.03,182.07,182.06,85.79891028]
[1754873501118,0.71,182.07,182.06,89.78864734]
[1754873501313,0.71,182.07,182.01,106.08]
[1754873501314,0.71,182.07,182.02,0.54939017]
[1754873501515,0.68,182.06,182.03,9.48333701]
[1754873501823,0.68,182.05,182.04,39.2]
[1754873502024,4.66973706,182.05,182.0,0.06]
[1754873502361,0.03,182.07,182.01,39.2]
[1754873502362,0.68,182.04,182.01,39.2]
[1754873502523,0.68,182.04,182.01,43.18973706]
[1754873502718,4.01973706,182.07,182.03,3.98973706]
[1754873502719,0.03,182.07,182.03,3.98973706]
[1754873503054,0.68,182.06,182.04,39.2]
[1754873503932,3.98973706,182.05,182.04,39.2]
[1754873504331,4.66973706,182.05,182.03,39.2]
[1754873504534,0.68,182.04,182.03,39.2]
[1754873504945,0.71,182.07,182.03,39.2]
[1754873505142,0.71,182.07,182.03,43.18973706]
[1754873505357,0.68,182.06,182.03,39.2]
[1754873505566,4.66973706,182.06,182.03,39.2]
[1754873505772,3.98973706,182.06,182.03,39.2]
[1754873505940,0.68,182.05,182.03,39.2]
[1754873506140,3.98973706,182.06,182.03,39.2]
[1754873506371,0.68,182.04,182.03,39.2]
[1754873507859,4.66973706,182.04,182.03,39.2]
[1754873508061,0.68,182.04,182.03,39.2]
[1754873508257,0.71,182.07,182.03,43.18973706]
[1754873508441,0.03,182.07,182.03,39.2]
[1754873508644,0.68,182.06,182.03,39.2]
[1754873508866,0.03,182.07,182.03,48.6833018]
[1754873509073,0.03,182.07,182.04,3.98973706]
[1754873509241,0.03,182.07,182.06,3.98973706]
[1754873509647,0.03,182.07,182.05,43.18973706]
[1754873510359,0.68,182.06,182.05,39.2]
[1754873510564,4.66973706,182.06,182.05,39.2]
[1754873510874,4.66973706,182.06,182.0,0.06]
[1754873511057,3.98973706,182.02,182.0,39.24]
[1754873511263,0.68,182.01,182.0,39.24]
[1754873511757,4.66973706,182.01,182.0,39.24]
[1754873511963,4.66973706,182.03,182.0,39.24]
[1754873512166,3.98973706,182.03,182.0,39.24]
[1754873512362,0.68,182.02,182.0,39.24]
[1754873512741,3.98973706,182.03,182.0,39.24]
[1754873512945,0.68,182.01,182.0,39.24]
[1754873513264,4.66973706,182.01,182.0,0.06]
[1754873514160,3.98973706,182.03,182.0,0.06]
[1754873514672,0.68,182.03,182.0,0.06]
[1754873514973,3.98973706,182.04,182.0,0.06]
[1754873515178,0.68,182.03,182.0,0.06]
[1754873516750,0.68,182.03,182.01,39.2]
[1754873516949,4.66973706,182.05,182.01,39.2]
[1754873517146,4.66973706,182.05,182.01,44.69408332]
[1754873517147,0.68,182.05,182.01,44.69408332]
[1754873517476,4.69973706,182.07,182.01,49.38382038]
[1754873518047,0.71,182.07,182.03,3.98973706]
[1754873518348,0.03,182.07,182.04,39.18]
[1754873519857,0.74,182.07,182.04,39.18]
[1754873520480,0.03,182.07,182.05,0.69]
[1754873520776,0.03,182.07,182.05,4.67973706]
[1754873521779,0.71,182.06,182.0,41.16621557]
[1754873521981,3.98973706,182.03,182.01,39.18]
[1754873522282,4.69973706,182.02,182.0,0.06]
[1754873522585,0.71,182.02,182.0,0.06]
[1754873522879,0.71,182.04,182.0,0.06]
[1754873523079,4.69973706,182.03,182.0,0.06]
[1754873523473,0.71,182.03,182.0,0.06]
[1754873524079,4.69973706,182.03,182.0,0.06]
[1754873524263,26.44314436,182.07,182.0,0.06]
[1754873524264,4.69973706,182.02,182.0,0.06]
[1754873524466,3.98973706,182.01,182.0,0.06]
[1754873524662,4.69973706,182.01,182.0,0.06]
[1754873524880,3.98973706,182.01,182.0,0.06]
[1754873525083,4.69973706,182.01,182.0,0.06]
[1754873525960,10.19394067,182.01,182.0,0.06]
[1754873527264,4.69973706,182.01,182.0,0.06]
[1754873527580,3.98973706,182.01,182.0,0.06]
[1754873527986,4.69973706,182.01,182.0,0.06]
[1754873528393,0.71,182.01,182.0,0.06]
[1754873528689,0.41314436,182.06,182.0,0.06]
[1754873528690,3.98973706,182.02,182.0,0.06]
[1754873529092,4.69973706,182.03,182.0,0.06]
[1754873529693,3.98973706,182.04,182.0,0.75]
[1754873529860,3.98973706,182.03,182.0,0.06]
[1754873530069,0.71,182.02,182.0,0.06]
[1754873530775,3.98973706,182.03,182.0,0.06]
[1754873530977,3.98973706,182.04,182.0,0.06]
[1754873531184,3.98973706,182.04,182.0,0.75]
[1754873531571,4.69973706,182.04,182.0,0.06]
[1754873531792,4.69973706,182.03,182.0,0.06]
[1754873532190,0.71,182.02,182.0,0.06]
[1754873532697,0.71,182.01,182.0,0.06]
[1754873533070,3.98973706,182.03,182.0,0.06]
[1754873533990,3.98973706,182.04,182.0,0.06]
[1754873534296,4.69973706,182.04,182.0,0.75]
[1754873534495,0.71,182.03,182.0,0.06]
[1754873535376,3.98973706,182.04,182.01,0.69]
[1754873535572,0.71,182.05,182.01,4.67973706]
[1754873535786,9.51221329,182.07,182.02,0.69]
[1754873535987,4.69973706,182.06,182.0,43.22973706]
[1754873536283,4.69973706,182.06,182.01,6.18420361]
[1754873536481,4.69973706,182.06,182.01,10.17394067]
[1754873536680,0.71,182.05,182.01,10.17394067]
[1754873536884,3.98973706,182.06,182.02,0.69]
[1754873537204,0.03,182.07,182.03,4.67973706]
[1754873537378,0.03,182.07,182.05,3.98973706]
[1754873537774,0.03,182.07,182.05,0.69]
[1754873537974,0.03,182.07,182.03,3.98973706]
[1754873538201,0.03,182.07,182.04,0.69]
[1754873538400,0.03,182.07,182.04,6.18323538]
[1754873538604,0.03,182.07,182.04,10.17297244]
[1754873538801,0.03,182.07,182.05,4.67973706]
[1754873540077,0.03,182.07,182.06,0.69]
[1754873540515,0.03,182.07,182.06,10.17243177]